fUST/lending_fUST_20240808
["ID","MTS","AMOUNT","RATE_DAILY","PERIOD"]
[334439142,1723098647214,-424.31336219,0.00027671,7]
[334439143,1723098647225,-500.0,0.00027671,7]
[334439144,1723098647235,-711.92,0.00027671,7]
[334439145,1723098647247,-528.45221219,0.00027671,7]
[334439146,1723098647258,-500.0,0.00027671,7]
[334439147,1723098647271,-1217.64,0.00027671,7]
[334439148,1723098647282,-531.11,0.00027671,7]
[334439149,1723098647292,-500.0,0.00027671,7]
[334439150,1723098647302,-500.0,0.00027671,7]
[334439151,1723098647313,-578.06,0.00027671,7]
[334439152,1723098647323,-850.45,0.00027671,7]
[334439153,1723098647334,-712.07,0.00027671,7]
[334439154,1723098647345,-500.0,0.00027671,7]
[334439155,1723098647358,-500.0,0.00027671,7]
[334439156,1723098647370,-500.0,0.00027671,7]
[334439157,1723098647381,-723.22,0.00027671,7]
[334439158,1723098647393,-500.0,0.00027671,7]
[334439159,1723098647404,-500.0,0.00027671,7]
[334439160,1723098647417,-832.15,0.00027671,7]
[334439161,1723098647428,-500.0,0.00027671,7]
[334439162,1723098647441,-500.0,0.00027671,7]
[334439163,1723098647453,-500.0,0.00027671,7]
[334439164,1723098647466,-500.0,0.00027671,2]
[334439165,1723098647478,-500.0,0.00027671,7]
[334439166,1723098647491,-500.0,0.00027671,7]
[334439167,1723098647502,-1849.77,0.00027671,7]
[334439168,1723098647512,-500.0,0.00027671,7]
[334439169,1723098647523,-500.0,0.00027671,7]
[334439170,1723098647533,-500.0,0.00027671,7]
[334439171,1723098647543,-504.33304855,0.00027671,7]
[334439172,1723098647798,-513.73142351,0.00027671,7]
[334439173,1723098647808,-1629.77,0.00027671,7]
[334439174,1723098647818,-632.19178777,0.00027671,7]
[334439175,1723098647829,-500.0,0.00027671,7]
[334439176,1723098647841,-500.0,0.00027671,7]
[334439177,1723098647851,-500.0,0.00027671,7]
[334439178,1723098647861,-500.0,0.00027671,7]
[334439179,1723098647870,-500.0,0.00027671,7]
[334439180,1723098647880,-240.04156707,0.00027671,7]
[334439181,1723098647889,-500.0,0.00027671,7]
[334439182,1723098647899,-971.07,0.00027671,7]
[334439183,1723098647909,-500.0,0.00027671,7]
[334439184,1723098647918,-1231.8,0.00027671,7]
[334439185,1723098647929,-2407.91,0.00027671,7]
[334439186,1723098647939,-501.62698562,0.00027671,7]
[334439187,1723098647948,-151.0,0.00027671,7]
[334439188,1723098647958,-500.0,0.00027671,7]
[334439189,1723098647968,-500.0,0.00027671,7]
[334439190,1723098647978,-500.0,0.00027671,7]
[334439191,1723098647991,-675.01,0.00027671,7]
[334439192,1723098648004,-500.0,0.00027671,7]
[334439193,1723098648013,-500.0,0.00027671,7]
[334439194,1723098648023,-500.0,0.00027671,7]
[334439195,1723098648032,-500.0,0.00027671,7]
[334439196,1723098648041,-500.0,0.00027671,7]
[334439197,1723098648050,-1361.25,0.00027671,7]
[334439198,1723098648059,-151.0,0.00027671,7]
[334439199,1723098648069,-500.0,0.00027671,7]
[334439200,1723098648078,-675.89,0.00027671,7]
[334439201,1723098648087,-1144.02,0.00027671,7]
[334439202,1723098648097,-500.0,0.00027671,7]
[334439203,1723098648106,-615.19,0.00027671,7]
[334439204,1723098648116,-500.0,0.00027671,7]
[334439205,1723098648126,-500.0,0.00027671,7]
[334439206,1723098648135,-500.0,0.00027671,7]
[334439207,1723098648145,-2022.46,0.00027671,7]
[334439208,1723098648155,-500.0,0.00027671,7]
[334439209,1723098648164,-500.0,0.00027671,7]
[334439210,1723098648174,-3873.62,0.00027671,7]
[334439211,1723098648184,-500.0,0.00027671,7]
[334439212,1723098648195,-500.0,0.00027671,7]
[334439213,1723098648204,-578.89,0.00027671,7]
[334439214,1723098648214,-500.0,0.00027671,7]
[334439215,1723098648224,-1813.76,0.00027671,7]
[334439216,1723098648234,-500.0,0.00027671,7]
[334439217,1723098648245,-2870.08,0.00027671,7]
[334439218,1723098648255,-366.79524006,0.00027671,7]
[334439219,1723098648265,-153.324551,0.00027671,7]
[334439220,1723098648275,-1109.1,0.00027671,7]
[334439221,1723098648286,-503.14464917,0.00027671,7]
[334439222,1723098648297,-580.03,0.00027671,7]
[334439223,1723098648306,-500.0,0.00027671,7]
[334439224,1723098648316,-500.0,0.00027671,7]
[334439225,1723098648327,-500.0,0.00027671,7]
[334439226,1723098648336,-500.0,0.00027671,7]
[334439227,1723098648347,-500.0,0.00027671,7]
[334439228,1723098648356,-500.0,0.00027671,7]
[334439229,1723098648366,-500.0,0.00027671,7]
[334439230,1723098648376,-500.0,0.00027671,7]
[334439231,1723098648386,-281.958953,0.00027671,7]
[334439232,1723098648395,-500.0,0.00027671,7]
[334439233,1723098648405,-500.0,0.00027671,7]
[334439234,1723098648414,-2377.97,0.00027671,7]
[334439235,1723098648425,-1178.53,0.00027671,7]
[334439236,1723098648436,-500.0,0.00027671,7]
[334439237,1723098648446,-2145.24,0.00027671,7]
[334439238,1723098648457,-3393.12,0.00027671,7]
[334439239,1723098648466,-535.79,0.00027671,7]
[334439240,1723098648476,-549.29,0.00027671,7]
[334439241,1723098648486,-509.86187726,0.00027671,7]
[334439242,1723098648498,-512.35,0.00027671,7]
[334439243,1723098648508,-2164.35,0.00027671,7]
[334439244,1723098648518,-500.0,0.00027671,7]
[334439245,1723098648528,-500.0,0.00027671,7]
[334439246,1723098648538,-500.0,0.00027671,7]
[334439247,1723098648547,-500.0,0.00027671,7]
[334439248,1723098648557,-504.56980752,0.00027671,7]
[334439249,1723098648566,-500.0,0.00027671,7]
[334439250,1723098648575,-503.31204216,0.00027671,7]
[334439251,1723098648587,-500.0,0.00027671,7]
[334439252,1723098648597,-500.0,0.00027671,7]
[334439253,1723098648607,-500.0,0.00027671,7]
[334439254,1723098648617,-500.0,0.00027671,7]
[334439255,1723098648627,-500.0,0.00027671,7]
[334439256,1723098648637,-500.0,0.00027671,7]
[334439257,1723098648647,-500.0,0.00027671,7]
[334439258,1723098648658,-1863.37,0.00027671,7]
[334439259,1723098648672,-500.0,0.00027671,7]
[334439260,1723098648681,-500.0,0.00027671,7]
[334439261,1723098648692,-151.0,0.00027671,7]
[334439262,1723098648702,-500.0,0.00027671,7]
[334439263,1723098648712,-11312.0,0.00027671,7]
[334439264,1723098648721,-500.0,0.00027671,7]
[334439265,1723098648734,-500.0,0.00027671,7]
[334439266,1723098648748,-265.69115944,0.00027671,7]
[334439267,1723098648759,-500.0,0.00027671,7]
[334439268,1723098648769,-500.0,0.00027671,7]
[334439269,1723098648779,-546.13,0.00027671,7]
[334439270,1723098648788,-500.0,0.00027671,7]
[334439271,1723098648798,-556.09,0.00027671,7]
[334439272,1723098648807,-500.0,0.00027671,7]
[334439273,1723098648817,-503.17186054,0.00027671,7]
[334439274,1723098648826,-500.0,0.00027671,7]
[334439275,1723098648835,-151.0,0.00027671,7]
[334439276,1723098648846,-3004.51,0.00027671,7]
[334439277,1723098648855,-500.0,0.00027671,7]
[334439278,1723098648865,-820.69,0.00027671,7]
[334439279,1723098648874,-950.23,0.00027671,7]
[334439280,1723098648884,-568.59,0.00027671,7]
[334439281,1723098648894,-651.13,0.00027671,7]
[334439282,1723098648904,-500.0,0.00027671,7]
[334439283,1723098648914,-500.0,0.00027671,7]
[334439284,1723098648923,-500.0,0.00027671,7]
[334439285,1723098648933,-500.0,0.00027671,7]
[334439286,1723098648943,-500.0,0.00027671,7]
[334439287,1723098648952,-833.85,0.00027671,7]
[334439288,1723098648962,-500.0,0.00027671,7]
[334439289,1723098648971,-1834.07,0.00027671,7]
[334439290,1723098648981,-1132.79,0.00027671,7]
[334439291,1723098648993,-502.38517328,0.00027671,7]
[334439292,1723098649003,-500.0,0.00027671,7]
[334439293,1723098649013,-503.88671364,0.00027671,7]
[334439294,1723098649022,-1251.06,0.00027671,7]
[334439295,1723098649031,-2938.49,0.00027671,7]
[334439296,1723098649040,-882.51,0.00027671,7]
[334439297,1723098649050,-151.0,0.00027671,7]
[334439298,1723098649060,-540.1422905,0.00027671,7]
[334439299,1723098649466,-459.69835721,0.00019999,4]
[334439300,1723098649476,-500.0,0.00027397,7]
[334439301,1723098649485,-76.4877095,0.00027671,7]
[334439302,1723098649498,-204.11804163,0.00027671,7]
[334439303,1723098649507,-500.0,0.00027671,7]
[334439304,1723098649518,-500.0,0.00027671,7]
[334439305,1723098649527,-500.0,0.00027671,7]
[334439306,1723098649538,-284.96339166,0.00027671,7]
[334439329,1723099141761,211.138595,0.00014247,2]
[334439342,1723099222772,982.35474834,0.00014247,2]
[334439375,1723099540874,182.65686427,0.00014999,2]
[334439382,1723099622716,689.50251766,9.999e-05,3]
[334439393,1723099667503,164.966513,0.00014247,2]
[334439395,1723099748142,-1072.33299764,0.00015708,2]
[334439471,1723099832579,-154.68290005,0.00017403,2]
[334439472,1723099832588,-346.61709995,0.00017882,2]
[334439474,1723099839493,-390.25370346,0.00017882,2]
[334439475,1723099839505,-834.12707364,0.0001904,2]
[334439476,1723099839516,-250.0,0.00019041,2]
[334439477,1723099839525,-158.064956,0.00019178,2]
[334439478,1723099839536,-2021.48933923,0.00019256,2]
[334439479,1723099839547,-15368.4021762,0.0001984,2]
[334439480,1723099839559,-1767.74077512,0.000199,2]
[334439481,1723099839571,-10490.66665029,0.0002,2]
[334439482,1723099839580,-1626.61800287,0.0002,2]
[334439483,1723099839590,-156.42647328,0.0002,2]
[334439484,1723099839599,-266.81176881,0.0002,2]
[334439485,1723099839609,-4014.57010053,0.0002,2]
[334439486,1723099839618,-294.2333485,0.0002,2]
[334439487,1723099839628,-608.81911299,0.0002,2]
[334439491,1723099840383,-835.53868084,0.0002,2]
[334439492,1723099840393,-157.35838167,0.00021048,2]
[334439493,1723099840403,-710.85788053,0.0002217,2]
[334439494,1723099840413,-1767.74077509,0.00022614,2]
[334439495,1723099840424,-604.46846568,0.00022764,2]
[334439499,1723099840867,-395.38689187,0.00022764,2]
[334439501,1723099840878,-246.06147312,0.00025,2]
[334439503,1723099840888,-295.65829708,0.00025328,2]
[334439505,1723099840897,-468.96214533,0.00025329,2]
[334439507,1723099840909,-1298.77862976,0.00025329,2]
[334439509,1723099840919,-200.0,0.00026027,2]
[334439511,1723099840930,-402.58073778,0.0002632,2]
[334439513,1723099840941,-2605.08504403,0.000269,2]
[334439515,1723099840951,-438.0,0.00027,2]
[334439517,1723099840961,-150.0,0.0002701,2]
[334439520,1723099840971,-153.0,0.00027095,2]
[334439521,1723099840980,-153.0,0.00027095,2]
[334439523,1723099840990,-166.0,0.00027095,2]
[334439525,1723099840999,-166.0,0.00027095,2]
[334439528,1723099841008,-166.0,0.00027095,2]
[334439530,1723099841018,-153.0,0.00027095,2]
[334439532,1723099841027,-153.0,0.00027095,2]
[334439534,1723099841038,-153.0,0.00027095,2]
[334439536,1723099841052,-153.0,0.00027095,2]
[334439538,1723099841063,-153.0,0.00027095,2]
[334439541,1723099841078,-153.0,0.00027095,2]
[334439543,1723099841089,-153.0,0.00027095,2]
[334439545,1723099841100,-153.0,0.00027095,2]
[334439547,1723099841110,-153.0,0.00027095,2]
[334439549,1723099841120,-166.0,0.00027095,2]
[334439551,1723099841132,-166.0,0.00027095,2]
[334439554,1723099841144,-166.0,0.00027095,2]
[334439556,1723099841153,-166.0,0.00027095,2]
[334439558,1723099841163,-166.0,0.00027095,2]
[334439560,1723099841174,-166.0,0.00027095,2]
[334439562,1723099841184,-166.0,0.00027095,2]
[334439564,1723099841193,-166.0,0.00027095,2]
[334439566,1723099841203,-166.0,0.00027095,2]
[334439568,1723099841214,-166.0,0.00027095,2]
[334439570,1723099841223,-166.0,0.00027095,2]
[334439572,1723099841233,-166.0,0.00027095,2]
[334439574,1723099841242,-166.0,0.00027095,2]
[334439576,1723099841251,-166.0,0.00027095,2]
[334439578,1723099841261,-166.0,0.00027095,2]
[334439580,1723099841270,-166.0,0.00027095,2]
[334439582,1723099841280,-153.0,0.00027095,2]
[334439584,1723099841290,-153.0,0.00027095,2]
[334439586,1723099841299,-153.0,0.00027095,2]
[334439588,1723099841308,-153.0,0.00027095,2]
[334439590,1723099841317,-153.0,0.00027095,2]
[334439592,1723099841327,-153.0,0.00027095,2]
[334439594,1723099841337,-153.0,0.00027095,2]
[334439596,1723099841346,-153.0,0.00027095,2]
[334439598,1723099841356,-166.0,0.00027095,2]
[334439600,1723099841365,-166.0,0.00027095,2]
[334439602,1723099841375,-166.0,0.00027095,2]
[334439604,1723099841384,-166.0,0.00027095,2]
[334439606,1723099841394,-166.0,0.00027095,2]
[334439608,1723099841403,-166.0,0.00027095,2]
[334439610,1723099841413,-166.0,0.00027095,2]
[334439612,1723099841425,-166.0,0.00027095,2]
[334439614,1723099841435,-166.0,0.00027095,2]
[334439616,1723099841444,-166.0,0.00027095,2]
[334439618,1723099841454,-166.0,0.00027095,2]
[334439620,1723099841464,-166.0,0.00027095,2]
[334439622,1723099841474,-166.0,0.00027095,2]
[334439624,1723099841483,-166.0,0.00027095,2]
[334439626,1723099841493,-153.0,0.00027095,2]
[334439628,1723099841503,-153.0,0.00027095,2]
[334439630,1723099841512,-153.0,0.00027095,2]
[334439632,1723099841522,-153.0,0.00027095,2]
[334439634,1723099841532,-153.0,0.00027095,2]
[334439636,1723099841541,-153.0,0.00027095,2]
[334439638,1723099841552,-153.0,0.00027095,2]
[334439640,1723099841561,-153.0,0.00027095,2]
[334439642,1723099841571,-166.0,0.00027095,2]
[334439644,1723099841584,-166.0,0.00027095,2]
[334439646,1723099841593,-166.0,0.00027095,2]
[334439648,1723099841603,-166.0,0.00027095,2]
[334439650,1723099841612,-166.0,0.00027095,2]
[334439652,1723099841621,-166.0,0.00027095,2]
[334439654,1723099841630,-166.0,0.00027095,2]
[334439656,1723099841640,-166.0,0.00027095,2]
[334439658,1723099841650,-166.0,0.00027095,2]
[334439660,1723099841659,-166.0,0.00027095,2]
[334439662,1723099841669,-166.0,0.00027095,2]
[334439664,1723099841678,-166.0,0.00027095,2]
[334439666,1723099841688,-166.0,0.00027095,2]
[334439667,1723099841697,-166.0,0.00027095,2]
[334439669,1723099841706,-168.46130497,0.00027269,2]
[334439671,1723099841716,-15520.92,0.00027277,3]
[334439673,1723099841725,-22350.12,0.00027287,3]
[334439675,1723099841734,-18625.1,0.00027287,3]
[334439677,1723099841744,-500.0,0.00027296,2]
[334439679,1723099841754,-200.4602244,0.00027296,2]
[334439681,1723099841764,-500.0,0.00027296,2]
[334439683,1723099841773,-500.0,0.00027296,2]
[334439685,1723099841782,-500.0,0.00027296,2]
[334439687,1723099841792,-560.40711889,0.00027296,2]
[334439689,1723099841801,-500.0,0.00027296,2]
[334439691,1723099841810,-500.0,0.00027296,2]
[334439693,1723099841820,-2000.0,0.00027297,2]
[334439695,1723099841831,-88888.0,0.00027297,3]
[334439697,1723099841841,-2000.0,0.00027297,2]
[334439699,1723099841851,-1853.25223569,0.00027297,2]
[334439701,1723099841860,-24855.4661891,0.00027366,3]
[334439703,1723099841870,-155064.08311462,0.00027387,3]
[334439856,1723099843642,-8515.14999988,0.00027387,3]
[334439883,1723099846809,-736.87080341,0.00027387,3]
[334439891,1723100291434,171.562524,0.00014247,2]
[334439893,1723100685340,3609.28567796,0.00014247,2]
[334439894,1723100694677,2131.44792867,0.00014247,2]
[334439895,1723100716209,2857.0846311,0.00014247,2]
[334439896,1723100716238,1513.00357517,0.00014247,2]
[334439941,1723101033755,-5748.9072685,0.00015744,2]
[334439965,1723101039322,-818.75508754,0.00015744,2]
[334439966,1723101039387,-11532.37840254,0.00015744,2]
[334439967,1723101039396,-194.5599409,0.00015851,2]
[334439968,1723101039406,-155.32622612,0.00016038,2]
[334439969,1723101039415,-742.33143915,0.00016095,2]
[334439970,1723101039429,-1834.42344162,0.0001611,2]
[334439971,1723101039439,-2162.90546762,0.00016347,2]
[334439972,1723101039449,-247.7266478,0.00016532,2]
[334439973,1723101039458,-154.68290005,0.00019139,2]
[334439974,1723101039468,-459.69835721,0.00019167,4]
[334439975,1723101039478,-2279.23771552,0.00019177,3]
[334439976,1723101039488,-5748.9072685,0.00019177,2]
[334439977,1723101039499,-155.30339518,0.00019477,2]
[334439978,1723101039508,-533.62513603,0.00019547,2]
[334439979,1723101039518,-156.65927702,0.0002,2]
[334439980,1723101039528,-404.71507901,0.0002,2]
[334439981,1723101039537,-244.48018938,0.00021011,2]
[334439982,1723101039547,-594.33962788,0.00021675,2]
[334439983,1723101039556,-160.64700877,0.00022,2]
[334439984,1723101039566,-250.0,0.00022752,2]
[334439985,1723101039575,-512.3820635,0.00025,2]
[334439986,1723101039584,-200.0,0.00026027,2]
[334439987,1723101039593,-1412.0,0.00026495,2]
[334439988,1723101039602,-150.0,0.00026508,2]
[334439989,1723101039611,-151.0,0.00026591,4]
[334439990,1723101039621,-168.46130497,0.00026649,2]
[334439991,1723101039630,-4778.11378756,0.00026881,2]
[334439992,1723101039639,-284.40792874,0.00026955,2]
[334439993,1723101039648,-1631.44625338,0.00026956,2]
[334439994,1723101039657,-1000.0,0.00027,27]
[334439995,1723101039667,-438.0,0.00027,2]
[334439996,1723101039676,-321.0,0.00027056,2]
[334439997,1723101039686,-321.0,0.00027056,2]
[334439998,1723101039694,-321.0,0.00027056,2]
[334439999,1723101039704,-321.0,0.00027056,2]
[334440000,1723101039714,-321.0,0.00027056,2]
[334440001,1723101039723,-321.0,0.00027056,2]
[334440002,1723101039733,-321.0,0.00027056,2]
[334440003,1723101039742,-563.0,0.00027056,2]
[334440004,1723101039751,-563.0,0.00027056,2]
[334440005,1723101039761,-563.0,0.00027056,2]
[334440006,1723101039770,-321.0,0.00027056,2]
[334440007,1723101039779,-321.0,0.00027056,2]
[334440008,1723101039788,-321.0,0.00027056,2]
[334440009,1723101039797,-321.0,0.00027056,2]
[334440010,1723101039806,-321.0,0.00027056,2]
[334440011,1723101039817,-321.0,0.00027056,2]
[334440012,1723101039825,-321.0,0.00027056,2]
[334440013,1723101039834,-321.0,0.00027056,2]
[334440014,1723101039843,-321.0,0.00027056,2]
[334440015,1723101039853,-321.0,0.00027056,2]
[334440016,1723101039862,-321.0,0.00027056,2]
[334440017,1723101039872,-321.0,0.00027056,2]
[334440018,1723101039882,-321.0,0.00027056,2]
[334440019,1723101039891,-321.0,0.00027056,2]
[334440020,1723101039900,-321.0,0.00027056,2]
[334440021,1723101039909,-563.0,0.00027056,2]
[334440022,1723101039919,-563.0,0.00027056,2]
[334440023,1723101039928,-563.0,0.00027056,2]
[334440024,1723101039938,-563.0,0.00027056,2]
[334440025,1723101039947,-563.0,0.00027056,2]
[334440026,1723101039956,-563.0,0.00027056,2]
[334440027,1723101039966,-563.0,0.00027056,2]
[334440028,1723101039975,-563.0,0.00027056,2]
[334440029,1723101039984,-563.0,0.00027056,2]
[334440030,1723101039993,-563.0,0.00027056,2]
[334440031,1723101040002,-563.0,0.00027056,2]
[334440032,1723101040011,-563.0,0.00027056,2]
[334440033,1723101040020,-563.0,0.00027056,2]
[334440034,1723101040030,-563.0,0.00027056,2]
[334440035,1723101040039,-563.0,0.00027056,2]
[334440036,1723101040048,-563.0,0.00027056,2]
[334440037,1723101040057,-321.0,0.00027056,2]
[334440038,1723101040067,-321.0,0.00027056,2]
[334440039,1723101040076,-321.0,0.00027056,2]
[334440040,1723101040086,-321.0,0.00027056,2]
[334440041,1723101040095,-321.0,0.00027056,2]
[334440042,1723101040104,-321.0,0.00027056,2]
[334440043,1723101040113,-321.0,0.00027056,2]
[334440044,1723101040122,-321.0,0.00027056,2]
[334440045,1723101040131,-321.0,0.00027056,2]
[334440046,1723101040141,-321.0,0.00027056,2]
[334440047,1723101040150,-321.0,0.00027056,2]
[334440048,1723101040159,-321.0,0.00027056,2]
[334440049,1723101040168,-321.0,0.00027056,2]
[334440050,1723101040177,-321.0,0.00027056,2]
[334440051,1723101040186,-563.0,0.00027056,2]
[334440052,1723101040196,-563.0,0.00027056,2]
[334440053,1723101040205,-563.0,0.00027056,2]
[334440054,1723101040216,-563.0,0.00027056,2]
[334440055,1723101040228,-563.0,0.00027056,2]
[334440056,1723101040240,-563.0,0.00027056,2]
[334440057,1723101040250,-563.0,0.00027056,2]
[334440058,1723101040261,-563.0,0.00027056,2]
[334440059,1723101040272,-563.0,0.00027056,2]
[334440060,1723101040282,-563.0,0.00027056,2]
[334440061,1723101040293,-563.0,0.00027056,2]
[334440062,1723101040303,-563.0,0.00027056,2]
[334440063,1723101040313,-563.0,0.00027056,2]
[334440064,1723101040322,-563.0,0.00027056,2]
[334440065,1723101040331,-321.0,0.00027056,2]
[334440066,1723101040340,-321.0,0.00027056,2]
[334440067,1723101040349,-321.0,0.00027056,2]
[334440068,1723101040358,-321.0,0.00027056,2]
[334440069,1723101040369,-321.0,0.00027056,2]
[334440070,1723101040378,-321.0,0.00027056,2]
[334440071,1723101040388,-321.0,0.00027056,2]
[334440072,1723101040398,-321.0,0.00027056,2]
[334440073,1723101040408,-321.0,0.00027056,2]
[334440074,1723101040419,-321.0,0.00027056,2]
[334440075,1723101040432,-321.0,0.00027056,2]
[334440076,1723101040442,-321.0,0.00027056,2]
[334440077,1723101040451,-321.0,0.00027056,2]
[334440078,1723101040462,-321.0,0.00027056,2]
[334440079,1723101040471,-563.0,0.00027056,2]
[334440080,1723101040482,-563.0,0.00027056,2]
[334440081,1723101040492,-563.0,0.00027056,2]
[334440082,1723101040502,-563.0,0.00027056,2]
[334440083,1723101040512,-563.0,0.00027056,2]
[334440084,1723101040522,-563.0,0.00027056,2]
[334440085,1723101040531,-563.0,0.00027056,2]
[334440086,1723101040540,-563.0,0.00027056,2]
[334440087,1723101040550,-563.0,0.00027056,2]
[334440088,1723101040560,-563.0,0.00027056,2]
[334440089,1723101040571,-563.0,0.00027056,2]
[334440090,1723101040583,-563.0,0.00027056,2]
[334440091,1723101040594,-563.0,0.00027056,2]
[334440092,1723101040605,-563.0,0.00027056,2]
[334440093,1723101040614,-151.0,0.0002706,4]
[334440094,1723101040624,-151.0,0.0002706,4]
[334440095,1723101040633,-3421.54093531,0.00027197,2]
[334440096,1723101040642,-16828.7,0.00027216,3]
[334440097,1723101040651,-20194.44,0.00027226,3]
[334440098,1723101040660,-12934.1,0.00027236,3]
[334440099,1723101040669,-200.4602244,0.00027265,2]
[334440100,1723101040678,-500.0,0.00027265,2]
[334440101,1723101040687,-560.40711889,0.00027265,2]
[334440102,1723101040697,-500.0,0.00027265,2]
[334440103,1723101040706,-500.0,0.00027265,2]
[334440104,1723101040716,-500.0,0.00027265,2]
[334440105,1723101040725,-500.0,0.00027265,2]
[334440106,1723101040735,-500.0,0.00027265,2]
[334440107,1723101040744,-26045.4903429,0.00027266,3]
[334440108,1723101040754,-26045.4903429,0.00027267,3]
[334440109,1723101040763,-26045.4903429,0.00027277,3]
[334440110,1723101040772,-88888.0,0.00027277,3]
[334440111,1723101040781,-2201.10499583,0.00027287,2]
[334440112,1723101040791,-2000.0,0.00027287,2]
[334440113,1723101040800,-2000.0,0.00027297,2]
[334440114,1723101040810,-150.112233,0.000273,7]
[334440115,1723101040819,-150.112233,0.000273,6]
[334440116,1723101040829,-150.112233,0.000273,7]
[334440117,1723101040838,-150.112233,0.000273,10]
[334440118,1723101040848,-77119.80340662,0.00027377,11]
[334440119,1723101040858,-156272.942058,0.00027377,3]
[334440120,1723101040872,-160.44662095,0.00027386,2]
[334440121,1723101040882,-334220.79801729,0.00027387,2]
[334440122,1723101040892,-9588.81216364,0.00027387,2]
[334440123,1723101040902,-1624.92598621,0.00027387,2]
[334440124,1723101040912,-2605.08504403,0.00027396,2]
[334440125,1723101040922,-306.48613364,0.00027396,2]
[334440126,1723101040931,-160.0,0.00027396,10]
[334440127,1723101040940,-502.81112584,0.00027397,7]
[334440128,1723101040950,-500.0,0.00027397,7]
[334440129,1723101040960,-500.0,0.00027397,7]
[334440130,1723101040970,-500.0,0.00027397,7]
[334440131,1723101040979,-507.66,0.00027397,7]
[334440132,1723101040988,-500.0,0.00027397,7]
[334440133,1723101040998,-500.0,0.00027397,7]
[334440134,1723101041007,-500.0,0.00027397,7]
[334440135,1723101041016,-500.0,0.00027397,7]
[334440136,1723101041026,-504.53910335,0.00027397,7]
[334440137,1723101041035,-501.44134208,0.00027397,7]
[334440138,1723101041044,-500.0,0.00027397,7]
[334440139,1723101041053,-500.0,0.00027397,7]
[334440140,1723101041064,-500.0,0.00027397,7]
[334440141,1723101041073,-556.8,0.00027397,7]
[334440142,1723101041082,-500.0,0.00027397,7]
[334440143,1723101041092,-500.0,0.00027397,7]
[334440144,1723101041102,-304.84690658,0.00027397,7]
[334440145,1723101041113,-500.0,0.00027397,7]
[334440146,1723101041122,-500.0,0.00027397,7]
[334440147,1723101041133,-500.0,0.00027397,7]
[334440148,1723101041144,-500.0,0.00027397,7]
[334440149,1723101041153,-501.88431847,0.00027397,7]
[334440150,1723101041165,-500.0,0.00027397,7]
[334440151,1723101041174,-500.0,0.00027397,7]
[334440152,1723101041184,-1144.02,0.00027397,7]
[334440153,1723101041193,-500.0,0.00027397,7]
[334440154,1723101041204,-500.0,0.00027397,7]
[334440155,1723101041215,-500.0,0.00027397,7]
[334440156,1723101041225,-500.0,0.00027397,7]
[334440157,1723101041235,-539.74,0.00027397,7]
[334440158,1723101041245,-500.0,0.00027397,7]
[334440159,1723101041255,-1461.09,0.00027397,7]
[334440160,1723101041267,-500.0,0.00027397,2]
[334440161,1723101041279,-500.0,0.00027397,7]
[334440162,1723101041288,-503.14464917,0.00027397,7]